[Event "GER-ch Youth-U14 2022"]
[Site "Willingen"]
[Date "2022.06.08"]
[Round "5.4"]
[White "Besou, Hussain"]
[Black "Klaska, Philipp Leon"]
[Result "1/2-1/2"]
[ECO "B42"]
[WhiteElo "2094"]
[BlackElo "1946"]
[Annotator "TA"]
[PlyCount "94"]
[EventDate "2022.06.05"]
[EventType "swiss"]
[EventRounds "9"]
[EventCountry "GER"]
[SourceTitle "playchess.com"]
[Source "ChessBase"]
[SourceQuality "1"]
[TimeControl "40/4500+30:900+30"]

{[%evp 20,94,64,51,80,75,62,45,56,-16,0,0,0,-43,-27,-79,-16,-15,-20,-20,0,-65,-65,-65,-63,-147,-159,-156,-138,-138,-87,-89,-51,-53,-52,-70,-75,-75,-71,-104,-102,-96,-68,-75,-70,-79,-78,-79,-73,-99,-86,-110,-91,-99,-87,-87,-67,-62,-62,-92,-83,-88,-75,-98,-77,-79,-77,-108,-70,-89,-70,-70,-70,-70,-71,-101,-6]} 1. e4 {[%emt 0:00:00]} c5 {[%emt 0:00:00]} 2. Nf3 {[%emt 0:00:00]} e6 {[%emt 0:00:00]} 3. d4 {[%emt 0:00:00]} cxd4 {[%emt 0:00:00]} 4. Nxd4 {[%emt 0:00:00]} a6 {[%emt 0:00:00]} 5. Bd3 {[%emt 0:00:00]} Qc7 {[%emt 0:00:00]} 6. O-O {[%emt 0:00:00]} Nf6 {[%emt 0:00:00]} 7. Qe2 {[%emt 0:00:00]} d6 {[%emt 0:00:00]} 8. c4 {[%emt 0:00:00]} Nbd7 {[%emt 0:00:00]} 9. Nc3 {[%emt 0:00:00]} Be7 {[%emt 0:00:00]} 10. f4 {[%emt 0:00:00]} O-O {[%emt 0:00:00] 10...0-0 is better than 10...b6.} 11. Kh1 {[%emt 0:00:00]} g6 {[%emt 0:11:27] [#] B42: Sicilian: Kan Variation: 5 Bd3.} 12. f5 $146 {[%emt 0:00:00] White is more active.} ({Predecessor:} 12. Bd2 b6 13. e5 Ne8 14. Nc6 Bh4 15. Qg4 f5 16. exf6 Ndxf6 17. Ne7+ Qxe7 18. Qxh4 Qc7 19. Ne4 Nxe4 20. Bxe4 Bb7 21. Rae1 Ng7 22. Bc3 {½-½ (22) Stukopin,A (2439)-Papin,V (2521) Taganrog 2010}) 12... Ne5 {[%emt 0:12:47]} 13. Bh6 {[%emt 0:02:48]} Re8 {[%emt 0:05:27] White is slightly better.} 14. fxe6 {[%emt 0:33:34]} (14. Rad1 $14) 14... fxe6 {[%emt 0:05:04]} 15. Bg5 {[%emt 0:04:47]} Nfg4 {[%emt 0:08:19]} 16. Bd2 {[%emt 0:02:09]} Nxd3 {[%emt 0:04:28]} 17. Qxg4 {[%emt 0:02:39]} (17. Qxd3 $11 {keeps the balance.} Ne5 18. Qg3) 17... Ne5 {[%emt 0:02:02]} (17... Nxb2 $17 18. Bh6 (18. Nxe6 Qd7 $17) 18... Nxc4) 18. Qg3 {[%emt 0:02:54]} ({Not} 18. Nxe6 $2 Qxc4 19. Qg3 Bxe6 $19) 18... Nxc4 {[%emt 0:06:03]} 19. Bh6 {[%emt 0:01:09]} Bd7 {[%emt 0:02:47]} 20. Qf4 {[%emt 0:06:45]} (20. e5 $11) 20... Ne5 $15 {[%emt 0:01:57]} 21. Nf3 {[%emt 0:00:44] [#] Nxe5 is the strong threat.} Nf7 {[%emt 0:01:28]} 22. Qe3 {[%emt 0:03:23]} (22. Nh4 $15 Nh8 23. Nf3) 22... Qc5 $17 {[%emt 0:04:08] White must now prevent ...g5.} 23. Rad1 {[%emt 0:03:06]} Qxe3 {[%emt 0:01:09]} 24. Bxe3 {[%emt 0:00:06]} Bf6 {[%emt 0:02:13]} (24... Rf8 $142 25. Bb6 Rac8) 25. e5 {[%emt 0:05:29]} Bxe5 {[%emt 0:04:10]} 26. Nxe5 {[%emt 0:00:13][%mdl 64] [#] Remove Defender} Nxe5 {[%emt 0:00:09]} 27. Rxd6 {[%emt 0:00:16] Threatens to win with Bd4.} Bc6 {[%emt 0:00:27] And now ...Nc4 would win.} 28. Rd4 {[%emt 0:03:38] Against Nc4} Rad8 {[%emt 0:02:06]} 29. h3 {[%emt 0:03:01]} Rxd4 {[%emt 0:01:06]} 30. Bxd4 {[%emt 0:00:04]} Nf7 {[%emt 0:00:30]} 31. Kh2 {[%emt 0:02:31]} e5 {[%emt 0:01:05]} 32. Bc5 {[%emt 0:00:06]} Rd8 {[%emt 0:02:15]} 33. Rf2 {[%emt 0:00:10]} Kg7 {[%emt 0:01:16]} 34. a3 {[%emt 0:02:53]} Rd7 {[%emt 0:01:35]} 35. Be3 {[%emt 0:02:28]} Nd6 {[%emt 0:01:44]} 36. Bg5 {[%emt 0:00:48]} Rf7 {[%emt 0:01:03] Inhibits Bf6+.} 37. Re2 {[%emt 0:00:17]} Rf5 {[%emt 0:01:37]} 38. Be7 {[%emt 0:00:36]} Nf7 {[%emt 0:01:45]} 39. Bc5 {[%emt 0:00:41]} Kf6 {[%emt 0:02:21]} 40. Nd1 {[%emt 0:01:13]} Rf4 {[%emt 0:02:13]} 41. Ne3 {[%emt 0:17:31]} Ke6 {[%emt 0:00:00]} 42. Rd2 {[%emt 0:00:00]} h5 {[%emt 0:00:00]} 43. b3 {[%emt 0:00:00]} g5 {[%emt 0:01:58]} 44. a4 {[%emt 0:00:00]} Rf6 {[%emt 0:05:13]} 45. a5 {[%emt 0:00:00]} Rg6 {[%emt 0:01:48]} 46. Kg3 {[%emt 0:00:00]} Rg8 {[%emt 0:00:50]} 47. h4 {[%emt 0:00:00]} Kf6 {[%emt 0:03:41] Weighted Error Value: White=0.20 (precise) /Black=0.14 (very precise)} (47... Rh8 $17 48. b4 g4) 1/2-1/2

[Event "GER-ch Youth-U14 2022"]
[Site "Willingen"]
[Date "2022.06.08"]
[Round "5.5"]
[White "Haubold, Christian Lucas"]
[Black "Mader, Fabian"]
[Result "1-0"]
[ECO "B34"]
[WhiteElo "1921"]
[BlackElo "1652"]
[Annotator "TA"]
[PlyCount "109"]
[EventDate "2022.06.05"]
[EventType "swiss"]
[EventRounds "9"]
[EventCountry "GER"]
[SourceTitle "playchess.com"]
[Source "ChessBase"]
[SourceQuality "1"]
[TimeControl "40/4500+30:900+30"]

{[%evp 17,109,31,29,14,39,0,0,-2,133,49,51,47,43,52,53,61,50,54,91,93,91,48,93,0,0,0,0,0,-4,-92,104,121,713,713,704,697,682,679,556,0,56,26,25,24,27,23,64,77,102,83,87,39,54,49,50,23,121,72,135,11,13,14,163,161,191,185,191,180,191,138,442,426,458,448,595,650,639,575,606,550,694,689,789,789,740,723,735,727,1619,903,29966,29963,29963,7713]} 1. e4 {[%emt 0:00:00]} c5 {[%emt 0:00:00]} 2. Nf3 {[%emt 0:00:00]} Nc6 {[%emt 0:00:00]} 3. d4 {[%emt 0:00:00]} cxd4 {[%emt 0:00:00]} 4. Nxd4 {[%emt 0:00:00]} Nf6 {[%emt 0:00:00]} 5. Nc3 {[%emt 0:00:00]} e5 {[%emt 0:00:00]} 6. Ndb5 {[%emt 0:00:00]} d6 {[%emt 0:00:00]} 7. Nd5 {[%emt 0:00:00]} Nxd5 {[%emt 0:00:00]} 8. exd5 {[%emt 0:00:00]} Ne7 {[%emt 0:00:00]} 9. c4 {[%emt 0:00:00][%cal Bc2c4,Bc4c5][%mdl 32]} Ng6 {[%emt 0:00:00]} 10. h4 {[%emt 0:00:00] B33: Sicilian: Pelikan and Sveshnikov Variations.} (10. Qa4 $5 {[%cal Rb5c7]} Bd7 11. Qb4 $11) 10... h5 {[%emt 0:00:00]} 11. Bg5 {[%emt 0:00:00]} Be7 {[%emt 0:00:00]} 12. c5 {[%emt 0:00:00] [#] The position is equal.} f6 $146 {[%emt 0:09:21]} (12... dxc5 $11 13. Bxe7 Kxe7) ({Predecessor:} 12... Bxg5 13. Nxd6+ Kf8 14. hxg5 Qa5+ 15. Qd2 Qxc5 16. Ne4 Qd4 17. Qxd4 exd4 18. Rd1 Nf4 19. Rxd4 Bf5 20. Ng3 Re8+ 21. Kd2 {1-0 (21) Vuckovic,M (2009)-Vujovic,S (2093) Pljevlja 2019}) 13. Qd3 {[%emt 0:24:45] 0x0.001aa0e0dac3dp-1022s more active pieces. The black rooks are badly placed.} (13. cxd6 $6 Bxd6 14. Bd2 (14. Nxd6+ Qxd6 15. Be3 Ne7 $11) 14... Bf5 $14) (13. Bd3 $16 Nf8 14. cxd6 Bxd6 15. Bd2) 13... Kf7 $14 {[%emt 0:05:34]} 14. Be3 {[%emt 0:16:41]} (14. cxd6 Bxd6 15. Bd2 (15. Nxd6+ Qxd6 16. Bd2 Ne7 $15) 15... a6 16. Nxd6+ Qxd6 $11) 14... a6 $1 {[%emt 0:11:11]} 15. Qa3 {[%emt 0:07:31][%cal Rb5d6]} dxc5 {[%emt 0:07:48]} 16. d6 $1 {[%emt 0:09:01]} Bxd6 {[%emt 0:02:37]} 17. Bc4+ {[%emt 0:02:32]} Be6 {[%emt 0:04:33]} 18. Bxe6+ {[%emt 0:04:40]} Kxe6 {[%emt 0:00:09]} 19. Qb3+ {[%emt 0:00:18]} Ke7 $1 {[%emt 0:01:16] [#]} (19... c4 $2 20. Qxc4+ Kf5 21. Qd3+ (21. Nc3 Ne7 $18) 21... Ke6 22. Nxd6 Qxd6 23. Qxg6 $18) 20. Nxd6 {[%emt 0:01:13]} (20. Nc3 $1 $16) 20... Qxd6 $11 {[%emt 0:00:45]} 21. Qxb7+ {[%emt 0:04:32]} Qd7 {[%emt 0:01:08]} 22. Bxc5+ {[%emt 0:00:19]} Ke6 {[%emt 0:00:09]} 23. Qb6+ {[%emt 0:00:59] [#]} (23. Qxd7+ $11 {keeps the balance.} Kxd7 24. g3) 23... Kf7 $2 {[%emt 0:01:13]} (23... Kf5 $1 $17 {Threatens to win with ...Nf4.} 24. Rd1 Qb5 25. Qxb5 axb5) 24. Rd1 $16 {[%emt 0:00:33]} Qc8 {[%emt 0:03:24][%mdl 8192]} (24... Qb5 $16) 25. Qb3+ $18 {[%emt 0:01:48]} Ke8 {[%emt 0:02:47]} 26. Qa4+ {[%emt 0:04:11]} Kf7 {[%emt 0:00:09]} 27. Qc4+ {[%emt 0:02:46]} Ke8 {[%emt 0:00:13]} 28. Qd5 $2 {[%emt 0:00:49]} (28. Rh3 $18 {Black must now prevent Rg3.} Nf8 29. Rg3) 28... Ne7 {[%emt 0:04:32]} (28... Nf4 $11 29. Qe4 (29. Qd6 Qb7 $15) 29... Rb8) 29. Bxe7 {[%emt 0:00:41]} Kxe7 {[%emt 0:00:08]} 30. O-O $1 {[%emt 0:01:28]} Rd8 {[%emt 0:01:33]} 31. Qf3 $36 {[%emt 0:00:19][%mdl 2048] White fights for an advantage.} Rxd1 {[%emt 0:05:01]} 32. Rxd1 $11 {[%emt 0:00:15][%mdl 4096] Endgame KQR-KQR} g6 {[%emt 0:00:30]} 33. Qa3+ {[%emt 0:01:44]} ({Don't play} 33. Qd3 Kf7 $14) 33... Kf7 {[%emt 0:00:44]} 34. Qd6 {[%emt 0:00:57]} (34. g3 $16) 34... Ra7 $14 {[%emt 0:02:27]} 35. Qb6 {[%emt 0:01:50]} Qc7 {[%emt 0:03:02]} 36. Qb3+ {[%emt 0:02:16]} Ke7 {[%emt 0:01:14]} (36... Kg7 $11) 37. g3 {[%emt 0:00:41]} ({Don't take} 37. Qg8 Qc2 38. Qd8+ Kf7 $14) (37. Qe3 $142) 37... Qc6 {[%emt 0:02:49]} (37... Kf8 $142) 38. Qe3 {[%emt 0:00:49]} ({White should play} 38. Qg8 $16 Qe8 39. Qc4) 38... Rd7 $11 {[%emt 0:01:22]} 39. Rc1 {[%emt 0:00:30]} Qb5 {[%emt 0:00:59] White leaves nothing to chance now.} (39... Qa4 $11 {and Black is okay.}) 40. Qh6 $18 {[%emt 0:00:38]} Qd3 {[%emt 0:07:04]} (40... Qxb2 41. Qg7+ Ke6 42. Rc6+ Kf5 43. Qxd7+ Ke4 44. Rc4+) 41. Qg7+ {[%emt 0:00:00]} Ke6 {[%emt 0:00:00]} 42. Rc6+ {[%emt 0:00:00]} Rd6 {[%emt 0:00:00]} 43. Rxd6+ {[%emt 0:00:00]} (43. Qg8+ $18 Ke7 44. Qg7+ Ke6 45. Rxd6+ Qxd6 46. Qxg6) 43... Kxd6 $4 {[%emt 0:00:00][%mdl 8192]} (43... Qxd6 $16 44. Qxg6 Qd1+ 45. Kg2 Qd5+ 46. Kh2 Qf3) 44. Qxf6+ {[%emt 0:00:00] KQ-KQ} Kd5 {[%emt 0:00:00]} 45. Kg2 {[%emt 0:00:00]} e4 {[%emt 0:01:23]} 46. Qxg6 {[%emt 0:00:00]} Qf3+ {[%emt 0:06:52]} 47. Kg1 {[%emt 0:00:00]} Qd1+ {[%emt 0:00:19]} 48. Kh2 {[%emt 0:00:00]} Qf3 {[%emt 0:01:07]} 49. Qb6 {[%emt 0:00:00]} Qe2 {[%emt 0:01:09]} 50. a4 {[%emt 0:00:00] And now b4 would win.} Qc2 {[%emt 0:02:26]} 51. b3 {[%emt 0:00:00][%cal Bb2b3,Bb3b4][%mdl 32]} Qe2 {[%emt 0:01:03]} 52. b4 {[%emt 0:00:00]} Qb2 {[%emt 0:04:25]} 53. Qa5+ {[%emt 0:00:57]} Kd4 {[%emt 0:00:59]} 54. Qc5+ {[%emt 0:00:11]} Kd3 {[%emt 0:00:12]} 55. Qe3+ {[%emt 0:00:09] Weighted Error Value: White=0.32/Black=0.58} (55. b5 $142 a5 56. b6 Kd2 57. Kg2 Ke1 58. Qxa5+ Kd1 59. Qb5 Qh8 60. b7) 1-0

[Event "GER-ch Youth-U14 2022"]
[Site "Willingen"]
[Date "2022.06.08"]
[Round "5.6"]
[White "Sauer, Tim"]
[Black "Honisch, Alexander"]
[Result "0-1"]
[ECO "C54"]
[WhiteElo "1769"]
[BlackElo "1878"]
[Annotator "NA RC COMBH"]
[PlyCount "76"]
[EventDate "2022.06.05"]
[EventType "swiss"]
[EventRounds "9"]
[EventCountry "GER"]
[SourceTitle "playchess.com"]
[Source "ChessBase"]
[SourceQuality "1"]
[TimeControl "40/4500+30:900+30"]

1. e4 {[%emt 0:00:00]} e5 {[%emt 0:00:00]} 2. Nf3 {[%emt 0:00:00]} Nc6 {[%emt 0:00:00]} 3. Bc4 {[%emt 0:00:00]} Bc5 {[%emt 0:00:00]} 4. c3 {[%emt 0:00:00]} Nf6 {[%emt 0:00:00]} 5. d4 {[%emt 0:00:00]} exd4 {[%emt 0:00:00]} 6. b4 {[%emt 0:00:00]} Bb6 {[%emt 0:00:00]} 7. e5 {[%emt 0:00:00]} d5 {[%emt 0:00:00]} 8. exf6 {[%emt 0:00:00]} dxc4 {[%emt 0:00:00]} 9. Qe2+ {[%emt 0:00:00] 9.Qe2+ scores better than 9.b5.} Be6 {[%emt 0:03:49]} 10. b5 {[%emt 0:00:00]} Na5 {[%emt 0:05:23]} 11. fxg7 {[%emt 0:00:00]} Rg8 {[%emt 0:00:44]} 12. cxd4 {[%emt 0:00:00]} Qd7 {[%emt 0:13:40]} 13. Nc3 {[%emt 0:00:00]} O-O-O {[%emt 0:03:54]} 14. Bg5 $1 {[%emt 0:00:00]} Rde8 {[%emt 0:05:58]} 15. O-O-O {[%emt 0:00:00] [#]} Bg4 $146 {[%emt 0:04:23]} ({Predecessor:} 15... Rxg7 16. Qd2 Kb8 17. Rhe1 Rgg8 18. Ne4 Qxb5 19. Nf6 Nc6 20. Qb2 Rxg5 21. d5 Qxb2+ 22. Kxb2 Rxg2 23. Nxe8 Rxf2+ {0-1 (67) Micic,A (2064)-Rajkovic,M (2390) Vrnjacka Banja 2021}) 16. Qd2 {[%emt 0:00:00]} Bxf3 {[%emt 0:02:58]} 17. gxf3 {[%emt 0:00:00]} Rxg7 {[%emt 0:00:26]} 18. Qf4 {[%emt 0:02:51]} Rg6 {[%emt 0:06:33]} 19. Bh4 {[%emt 0:06:00]} Kb8 {[%emt 0:11:42]} 20. Rhe1 {[%emt 0:04:08]} Rge6 {[%emt 0:03:29]} 21. Qf5 {[%emt 0:08:18] [#]} (21. Re5 $11 {keeps the balance.}) 21... Qd6 $1 {[%emt 0:04:41]} (21... Bxd4 $2 22. Re4 c5 23. bxc6 Nxc6 24. Nb5 $18) 22. Rxe6 {[%emt 0:11:01]} fxe6 {[%emt 0:02:40]} ({Much weaker is} 22... Qxe6 $6 23. Qxe6 fxe6 24. Bg3 $11) 23. Qe5 {[%emt 0:25:26]} Nb3+ {[%emt 0:03:04]} 24. Kb2 Nxd4 {[%emt 0:01:49]} 25. Qxd6 {[%emt 0:10:10]} cxd6 {[%emt 0:00:02]} 26. Bg3 {[%emt 0:00:23]} Kc7 {[%emt 0:04:18]} 27. Ne4 {[%emt 0:00:29]} e5 {[%emt 0:01:06]} 28. Rc1 {[%emt 0:02:17]} Rf8 {[%emt 0:02:20]} 29. Rxc4+ {[%emt 0:00:47]} Kd7 {[%emt 0:00:10]} 30. Nc3 {[%emt 0:02:46]} Rxf3 {[%emt 0:00:44]} 31. a4 {[%emt 0:00:34]} Nf5 {[%emt 0:01:20]} 32. Nd1 {[%emt 0:01:19]} h5 {[%emt 0:01:01]} 33. Kc2 {[%emt 0:02:33]} Bd4 {[%emt 0:00:39]} 34. Kd2 {[%emt 0:02:21]} h4 {[%emt 0:01:23]} 35. Ke2 {[%emt 0:00:05]} Ra3 {[%emt 0:00:44]} 36. Ne3 {[%emt 0:00:45]} Nxe3 {[%emt 0:02:08]} 37. fxe3 {[%emt 0:00:16]} Rxe3+ {[%emt 0:00:14]} 38. Kf2 $19 {[%emt 0:00:19]} hxg3+ {[%emt 0:00:06]} 0-1

[Event "GER-ch Youth-U14 2022"]
[Site "Willingen"]
[Date "2022.06.08"]
[Round "5.7"]
[White "Haubold, Sebastian Marcel"]
[Black "Krüger, Arthur"]
[Result "1/2-1/2"]
[ECO "C07"]
[WhiteElo "1869"]
[BlackElo "1988"]
[Annotator "TA"]
[PlyCount "72"]
[EventDate "2022.06.05"]
[EventType "swiss"]
[EventRounds "9"]
[EventCountry "GER"]
[SourceTitle "playchess.com"]
[Source "ChessBase"]
[SourceQuality "1"]
[TimeControl "40/4500+30:900+30"]

{[%evp 10,72,30,10,25,27,17,16,28,17,15,16,12,14,11,0,0,0,18,-3,25,29,29,40,27,22,45,25,20,0,25,22,19,17,39,31,40,22,25,18,24,12,48,23,27,22,22,22,22,22,22,22,23,6,17,7,22,21,21,21,21,21,21,21,56]} 1. e4 {[%emt 0:00:00]} e6 {[%emt 0:00:00]} 2. d4 {[%emt 0:00:00]} d5 {[%emt 0:00:00]} 3. Nd2 {[%emt 0:00:00]} c5 {[%emt 0:00:00]} 4. exd5 {[%emt 0:00:00]} Qxd5 {[%emt 0:00:00]} 5. Ngf3 {[%emt 0:00:00]} cxd4 {[%emt 0:00:00]} 6. Bc4 {[%emt 0:00:00]} Qd7 {[%emt 0:00:00] C07: French Tarrasch: 3...c5, 4 Ngf3 and 4 exd5 Qxd5.} 7. O-O {[%emt 0:00:00]} Nc6 {[%emt 0:00:00]} 8. Nb3 {[%emt 0:00:00][%cal Rb3d4]} Nf6 {[%emt 0:00:00]} 9. Nbxd4 {[%emt 0:00:00]} Nxd4 {[%emt 0:00:00]} 10. Nxd4 {[%emt 0:00:00] [#] Black must now prevent Bb5.} a6 {[%emt 0:00:00] Inhibits Bb5.} 11. Re1 {[%emt 0:00:00]} Bc5 {[%emt 0:00:00]} 12. Be3 {[%emt 0:00:00][%cal Od4e6]} Qc7 {[%emt 0:00:00]} 13. Bb3 {[%emt 0:00:11]} O-O {[%emt 0:02:04]} 14. Qf3 {[%emt 0:04:20]} e5 {[%emt 0:12:47]} 15. Nf5 {[%emt 0:05:01]} Bxf5 {[%emt 0:13:33]} 16. Qxf5 {[%emt 0:01:55] [#]} Bxe3 $146 {[%emt 0:01:15]} ({Predecessor:} 16... Rfe8 17. Bg5 Qd7 18. Qxd7 Nxd7 19. Rad1 Nb6 20. a4 Kf8 21. a5 f6 22. Be3 Bxe3 23. Rxe3 {1-0 (37) Grieve,H (2299)-Bridgeman,N (1623) Daventry 2020}) 17. Rxe3 {[%emt 0:00:09]} Rfe8 {[%emt 0:01:51]} 18. Rae1 {[%emt 0:07:05][%cal Re3e5]} e4 {[%emt 0:05:44]} 19. Rg3 {[%emt 0:06:40]} (19. Rc3 $5 {[%cal Rc3c7]} Qd6 20. Qc5 $11) 19... Qe5 {[%emt 0:05:12]} 20. Qxe5 {[%emt 0:00:55]} Rxe5 {[%emt 0:02:55]} 21. Rge3 {[%emt 0:05:23]} Ree8 {[%emt 0:09:09]} 22. h3 {[%emt 0:12:04]} Rad8 {[%emt 0:00:56]} 23. g4 {[%emt 0:07:32]} h6 {[%emt 0:02:11]} 24. Kg2 {[%emt 0:02:41]} Rd2 {[%emt 0:02:15]} 25. Kg3 {[%emt 0:01:17]} Rdd8 {[%emt 0:04:14]} 26. c3 {[%emt 0:04:19]} Kf8 {[%emt 0:03:58]} 27. Bc2 {[%emt 0:04:50][%cal Rc2e4]} Rd2 {[%emt 0:00:02]} 28. R1e2 {[%emt 0:00:08]} Rxe2 {[%emt 0:00:13]} 29. Rxe2 $11 {[%emt 0:00:03][%mdl 4096] Endgame KRB-KRN} Re6 {[%emt 0:03:00]} 30. c4 {[%emt 0:08:12]} g5 {[%emt 0:02:16]} 31. b4 {[%emt 0:03:02]} b6 {[%emt 0:03:17] The position is equal.} 32. f4 {[%emt 0:05:05]} exf3 {[%emt 0:02:53]} 33. Rxe6 {[%emt 0:00:11]} fxe6 {[%emt 0:00:01]} 34. Kxf3 {[%emt 0:00:09]} Ke7 {[%emt 0:00:47]} 35. Ke3 {[%emt 0:04:45]} Kd6 {[%emt 0:01:08]} 36. Bd1 {[%emt 0:01:19]} e5 {Weighted Error Value: White=0.06 (flawless) /Black=0.06 (flawless)} 1/2-1/2

[Event "GER-ch Youth-U14 2022"]
[Site "Willingen"]
[Date "2022.06.08"]
[Round "5.8"]
[White "Winkler, Yonathan"]
[Black "Campora, Daniel H."]
[Result "1/2-1/2"]
[ECO "B13"]
[WhiteElo "1699"]
[BlackElo "2397"]
[Annotator "TA"]
[PlyCount "56"]
[EventDate "2022.06.05"]
[EventType "swiss"]
[EventRounds "9"]
[EventCountry "GER"]
[SourceTitle "playchess.com"]
[Source "ChessBase"]
[SourceQuality "1"]
[TimeControl "40/4500+30:900+30"]

{[%evp 17,56,17,22,19,42,21,39,41,66,64,57,65,59,60,71,67,70,72,95,69,67,79,111,106,280,149,147,155,338,118,220,94,95,39,42,51,53,53,51,47,51]} 1. e4 {[%emt 0:00:00]} c6 {[%emt 0:00:00]} 2. d4 {[%emt 0:00:00]} d5 {[%emt 0:00:00]} 3. exd5 {[%emt 0:00:00]} cxd5 {[%emt 0:00:00]} 4. Bd3 {[%emt 0:00:00]} Nc6 {[%emt 0:00:00]} 5. c3 {[%emt 0:00:00]} Nf6 {[%emt 0:00:00]} 6. Nf3 {[%emt 0:00:00]} Bg4 {[%emt 0:00:00]} 7. O-O {[%emt 0:00:00]} e6 {[%emt 0:00:00]} 8. Bg5 {[%emt 0:00:00]} Be7 {[%emt 0:00:00]} 9. Nbd2 {[%emt 0:00:00]} O-O {[%emt 0:00:00]} 10. Re1 {[%emt 0:00:00] [#] B13: Caro-Kann: Exchange Variation and Panov-Botvinnik Attack.} Qb8 $146 {[%emt 0:16:22]} ({Predecessor:} 10... Bh5 11. Qe2 Qc7 12. Bh4 a6 13. a4 Rab8 14. h3 Rfe8 15. Qe3 Bg6 16. Bxg6 hxg6 17. Bg3 Bd6 {1-0 (72) Radjabov,T (2724)-Matlakov,M (2689) Dubai 2014}) 11. Qa4 {[%emt 0:15:05]} Bxf3 {[%emt 0:23:01]} 12. Nxf3 (12. gxf3 Nh5 13. Be3 Bd6 $17) 12... Ne8 {[%emt 0:12:21]} 13. Bxe7 {[%emt 0:05:19]} Nxe7 {[%emt 0:00:02]} 14. Ne5 {[%emt 0:01:19]} (14. Qd7 Nc6 15. Ne5 Nf6 16. Nxc6 bxc6 $17) 14... Nf6 {[%emt 0:00:13]} 15. Re3 {[%emt 0:02:50]} Ng6 {[%emt 0:02:13]} 16. Rae1 {[%emt 0:01:45] 0x0.001aa0e2a28ddp-1022s more active pieces. The black rooks are badly placed.} a6 {[%emt 0:03:32]} 17. Qd1 {[%emt 0:06:18]} b5 {[%emt 0:01:09]} 18. Bxg6 {[%emt 0:06:57]} hxg6 {[%emt 0:00:22]} 19. Rh3 {[%emt 0:00:49]} Qd6 {[%emt 0:04:47]} 20. Qf3 {[%emt 0:05:20] Strongly threatening Qf4.} Ra7 $2 {[%emt 0:00:46]} (20... Qd8 $16) 21. Rh4 $40 {[%emt 0:12:22][%mdl 128] White wants a kill.} (21. Qg3 $18 {[%cal Oe5g6]} Nh5 22. Qe3) 21... g5 $16 {[%emt 0:02:46]} 22. Rh3 {[%emt 0:00:11] Black must now prevent Qg3.} Rc8 $2 {[%emt 0:02:39] [#]} (22... Qe7 $16 {was worth a try.} 23. Qg3 (23. Nc6 Qe8 $16) 23... g4 24. Nxg4 Nxg4) 23. Qe3 $2 {[%emt 0:03:40]} (23. Qg3 $1 $18 {is the precise move to win.} Nh7 24. f4) 23... Nh7 {[%emt 0:02:26] [#]} (23... g4 $16 24. Rh4 Qe7) 24. f4 {[%emt 0:05:09]} (24. Rh5 $1 $18 {is more deadly. And now Qh3 would win.} g6 25. Rh3) 24... gxf4 {[%emt 0:01:49]} 25. Qxf4 {[%emt 0:00:19]} (25. Qe2 $16 {Qh5 is the strong threat.} f6 26. Ng6 (26. Qh5 g5 $14)) 25... f6 $1 $14 {[%emt 0:00:25] White is slightly better.} 26. Ng6 {[%emt 0:02:36]} ({Much weaker is} 26. Qh4 g5 27. Qg4 fxe5 $15) 26... Qxf4 {[%emt 0:00:18]} 27. Nxf4 {[%emt 0:00:06]} Nf8 {[%emt 0:01:09]} 28. Rhe3 {[%emt 0:01:10]} ({And not} 28. Nxe6 Re7 29. Rhe3 Rce8 30. Nxf8 Rxe3 31. Rxe3 Rxe3 $17) 28... b4 {Weighted Error Value: White=0.33/Black=0.26 (precise)} 1/2-1/2